bitfinex/quotes_BTCUSD_20240811
["timestamp","ask_amount","ask_price","bid_price","bid_amount"]
[1723393857845,1.47611708,60271.0,60270.0,0.010913]
[1723393858320,1.27957508,60271.0,60270.0,0.010913]
[1723393859440,1.27957508,60271.0,60270.0,0.81594792]
[1723393859677,1.27957508,60271.0,60270.0,0.83894792]
[1723393859906,1.27957508,60271.0,60270.0,0.91554792]
[1723393859907,1.27757508,60271.0,60270.0,0.91554792]
[1723393860126,1.27757508,60271.0,60270.0,0.92545696]
[1723393861023,1.27757508,60271.0,60270.0,0.91554792]
[1723393861498,1.27757508,60271.0,60270.0,1.14783592]
[1723393862256,1.27757508,60271.0,60270.0,0.91554792]
[1723393863351,1.27757508,60271.0,60270.0,0.60665992]
[1723393863573,1.27757508,60271.0,60270.0,0.77844792]
[1723393863790,0.00938808,60271.0,60270.0,0.77844792]
[1723393864242,0.00580209,60271.0,60270.0,0.77844792]
[1723393864442,0.00580209,60271.0,60270.0,0.31387192]
[1723393864797,0.67247716,60271.0,60270.0,0.010913]
[1723393865006,1.94066416,60271.0,60270.0,0.010913]
[1723393869666,2.25874816,60271.0,60270.0,0.010913]
[1723393869882,2.26874816,60271.0,60270.0,0.010913]
[1723393870081,2.24874816,60271.0,60270.0,0.010913]
[1723393870856,2.00646416,60271.0,60270.0,0.000913]
[1723393871072,1.71038016,60271.0,60270.0,0.003913]
[1723393871503,1.28155416,60271.0,60270.0,0.352345]
[1723393871728,1.27955416,60271.0,60270.0,0.85464792]
[1723393871971,1.27955416,60271.0,60270.0,0.92064792]
[1723393872388,1.27955416,60271.0,60270.0,1.06864102]
[1723393872389,1.27598909,60271.0,60270.0,1.06864102]
[1723393872815,1.2795461,60271.0,60270.0,1.06864102]
[1723393873231,1.2795461,60271.0,60270.0,1.06564102]
[1723393873440,1.27598909,60271.0,60270.0,1.05542103]
[1723393873642,1.2795461,60271.0,60270.0,1.05542103]
[1723393873858,1.2775461,60271.0,60270.0,1.05542103]
[1723393875406,1.2775461,60271.0,60270.0,0.90622103]
[1723393875637,0.0113591,60271.0,60270.0,0.67392508]
[1723393875849,0.00580209,60271.0,60270.0,0.67392508]
[1723393876065,0.00580209,60271.0,60270.0,0.67392569]
[1723393876284,0.00580209,60271.0,60270.0,0.90621369]
[1723393876496,0.00580209,60271.0,60270.0,1.22170169]
[1723393876707,0.00580209,60271.0,60270.0,0.98941369]
[1723393877793,0.00580209,60277.0,60276.0,0.116132]
[1723393878068,0.00580209,60277.0,60276.0,0.98844069]
[1723393878342,0.00935931,60277.0,60276.0,0.98844069]
[1723393879770,0.00935931,60277.0,60276.0,1.05444069]
[1723393880182,0.01035931,60277.0,60276.0,1.05444069]
[1723393880845,0.01035931,60277.0,60276.0,1.0642737]
[1723393881053,0.00680209,60277.0,60276.0,1.0642737]
[1723393882602,0.00880209,60277.0,60276.0,1.06426234]
[1723393883691,0.00880209,60277.0,60276.0,0.45053434]
[1723393883919,0.01237346,60277.0,60276.0,0.44070133]
[1723393884138,0.01237346,60277.0,60276.0,0.13775441]
[1723393884354,0.01237346,60277.0,60276.0,0.25388641]
[1723393884783,0.01237346,60277.0,60276.0,0.13775441]
[1723393886796,0.00780209,60274.0,60273.0,0.116138]
[1723393887017,0.08964855,60274.0,60273.0,0.44071316]
[1723393887244,0.09321947,60274.0,60273.0,0.44071316]
[1723393887952,0.09321947,60274.0,60273.0,0.44371316]
[1723393888371,0.09321947,60274.0,60273.0,0.14376024]
[1723393888596,0.28785547,60274.0,60273.0,0.14376024]
[1723393889043,0.75239947,60274.0,60273.0,0.14376024]
[1723393889271,0.75239947,60274.0,60273.0,0.006]
[1723393889272,0.81269947,60274.0,60273.0,0.006]
[1723393889494,1.04497147,60274.0,60273.0,0.006]
[1723393889711,1.04497147,60274.0,60273.0,0.003]
[1723393889952,1.04597147,60274.0,60273.0,0.003]
[1723393890190,0.09321947,60274.0,60273.0,0.179238]
[1723393890414,0.09321947,60274.0,60273.0,0.137776]
[1723393890415,0.01137301,60274.0,60273.0,0.137776]
[1723393890633,0.09421947,60274.0,60273.0,0.139776]
[1723393890850,0.09421947,60274.0,60273.0,0.48819]
[1723393891073,0.09321947,60274.0,60273.0,0.65100492]
[1723393891279,0.09321947,60274.0,60273.0,0.67500492]
[1723393891504,0.09421947,60274.0,60273.0,0.67500492]
[1723393891711,0.09421947,60274.0,60273.0,0.90628092]
[1723393891923,0.09421947,60274.0,60273.0,0.99058092]
[1723393892136,0.09421947,60274.0,60273.0,0.75830492]
[1723393892782,0.09421947,60274.0,60273.0,0.99058092]
[1723393892994,0.09421947,60274.0,60273.0,0.75830492]
[1723393893217,0.09321947,60274.0,60273.0,0.75729206]
[1723393893662,0.08964855,60274.0,60273.0,0.76029206]
[1723393894065,0.08184646,60274.0,60273.0,0.99256806]
[1723393894292,0.08184646,60274.0,60273.0,1.05566806]
[1723393894293,0.08764855,60274.0,60273.0,1.05566806]
[1723393897365,0.08764855,60274.0,60273.0,1.05565872]
[1723393899210,0.08764855,60274.0,60273.0,0.33056872]
[1723393899420,0.08964855,60274.0,60273.0,0.44670672]
[1723393899634,0.09121418,60274.0,60273.0,0.67898272]
[1723393899911,0.05624931,60274.0,60273.0,0.67598272]
[1723393900144,0.05268368,60274.0,60273.0,0.67598272]
[1723393900359,0.002,60274.0,60273.0,1.35381779]
[1723393900625,0.00780209,60274.0,60273.0,1.35081779]
[1723393900840,0.00580209,60274.0,60273.0,1.35081779]
[1723393901055,0.00680209,60274.0,60273.0,1.35081779]
[1723393901303,0.00580209,60274.0,60273.0,1.35081779]
[1723393901521,0.00580209,60274.0,60273.0,1.35473079]
[1723393901732,0.00580209,60274.0,60273.0,1.5269142]
[1723393901943,0.00580209,60276.0,60275.0,0.812938]
[1723393902156,0.00580209,60276.0,60275.0,1.20638979]
[1723393903938,0.00580209,60276.0,60275.0,1.21737409]
[1723393904635,0.00580209,60276.0,60275.0,1.22837409]
[1723393905532,0.00580209,60276.0,60275.0,1.21737409]
[1723393905777,0.00580209,60276.0,60275.0,1.21837409]
[1723393905993,0.00580209,60276.0,60275.0,1.23037409]
[1723393906209,0.00580209,60276.0,60275.0,1.31077409]
[1723393906422,0.00580209,60276.0,60275.0,1.29877409]
[1723393906870,0.00580209,60276.0,60275.0,1.30977409]
[1723393907149,0.00580209,60276.0,60275.0,1.29777409]
[1723393907378,0.00580209,60276.0,60275.0,1.21789712]
[1723393907603,0.00580209,60276.0,60275.0,1.30976922]
[1723393908053,0.00580209,60276.0,60275.0,1.3097688]
[1723393908266,0.00580209,60276.0,60275.0,1.36086918]
[1723393908490,0.00580209,60277.0,60276.0,0.893324]
[1723393908708,0.00580209,60277.0,60276.0,0.71840392]
[1723393908922,0.00580209,60277.0,60276.0,0.48613992]
[1723393909151,0.00937137,60277.0,60276.0,0.48613992]
[1723393910008,0.00937137,60277.0,60276.0,0.25387592]
[1723393910237,0.00937137,60277.0,60276.0,0.26487592]
[1723393910452,0.00937137,60277.0,60276.0,0.49713992]
[1723393910893,0.00937137,60277.0,60276.0,0.48613992]
[1723393911118,0.01137137,60277.0,60276.0,0.49713992]
[1723393911562,0.01137137,60277.0,60276.0,0.48613992]
[1723393911787,0.01137137,60277.0,60276.0,0.49013992]
[1723393912737,0.01137137,60277.0,60276.0,0.49413992]
[1723393912940,0.01137137,60277.0,60276.0,0.49013992]
[1723393913157,0.00937137,60277.0,60276.0,0.96661884]
[1723393913385,0.00580209,60277.0,60276.0,1.28798284]
[1723393913645,0.00663209,60277.0,60276.0,1.28798284]
[1723393913871,0.00663209,60277.0,60276.0,1.05571884]
[1723393914090,0.00863209,60277.0,60276.0,1.05571884]
[1723393914315,0.00663209,60277.0,60276.0,1.28798284]
[1723393914981,0.00663209,60277.0,60276.0,1.28798857]
[1723393915615,0.00083,60277.0,60276.0,1.6891242]
[1723393915828,0.00083,60277.0,60276.0,2.03369335]
[1723393916037,0.00083,60277.0,60276.0,2.13302402]
[1723393916251,0.00083,60277.0,60276.0,2.15785669]
[1723393916460,0.00083,60277.0,60276.0,2.15385669]
[1723393916923,0.00083,60277.0,60276.0,2.16785669]
[1723393917130,0.00083,60277.0,60276.0,2.16385669]
[1723393917364,0.00083,60277.0,60276.0,2.02569335]
[1723393917575,0.00083,60277.0,60276.0,2.03969335]
[1723393917787,0.00083,60277.0,60276.0,2.02569335]
[1723393918001,0.00083,60277.0,60276.0,2.03969335]
[1723393918801,0.00083,60277.0,60276.0,2.05338316]
[1723393919382,0.00083,60277.0,60276.0,2.05331983]
[1723393919576,0.00083,60277.0,60276.0,2.28558383]
[1723393920489,0.00580209,60286.0,60285.0,0.812805]
[1723393920696,0.00580209,60286.0,60285.0,1.44870149]
[1723393921364,0.08764855,60289.0,60285.0,0.63589649]
[1723393921574,0.08764855,60289.0,60288.0,0.116109]
[1723393921783,0.08764855,60289.0,60288.0,0.44064497]
[1723393922190,0.08764855,60289.0,60288.0,1.13729897]
[1723393922432,0.08764855,60296.0,60295.0,0.232191]
[1723393922644,0.08764855,60296.0,60295.0,0.81532197]
[1723393922853,0.09123692,60296.0,60295.0,1.27970397]
[1723393923079,0.08764855,60296.0,60295.0,1.27968374]
[1723393923299,0.00083,60298.0,60297.0,0.812644]
[1723393923543,0.00083,60298.0,60297.0,1.68069279]
[1723393923790,0.00083,60298.0,60297.0,1.8527978]
[1723393924464,0.00083,60298.0,60297.0,1.68069279]
[1723393924902,0.00663209,60298.0,60297.0,1.29925974]
[1723393925111,0.00083,60298.0,60297.0,1.62584374]
[1723393925331,0.00083,60298.0,60297.0,1.85278992]
[1723393925552,0.00083,60298.0,60297.0,1.68066049]
[1723393925763,0.00083,60298.0,60297.0,1.85275474]
[1723393926187,0.00083,60298.0,60297.0,1.68466049]
[1723393926607,0.00083,60298.0,60297.0,1.68066049]
[1723393927029,0.00083,60298.0,60297.0,1.68966049]
[1723393927242,0.00083,60298.0,60297.0,1.70366049]
[1723393927445,0.00083,60298.0,60297.0,1.68966049]
[1723393927662,0.00083,60298.0,60297.0,1.69866049]
[1723393928124,0.00083,60298.0,60297.0,1.6298213]
[1723393928546,0.00083,60298.0,60297.0,1.69866196]
[1723393929851,0.00083,60298.0,60297.0,1.69866056]
[1723393930711,0.00083,60298.0,60297.0,1.62982135]
[1723393931557,0.00083,60298.0,60297.0,1.69866037]
[1723393932003,0.00083,60299.0,60298.0,1.27699]
[1723393932230,0.00083,60299.0,60298.0,1.90852237]
[1723393933143,0.00083,60299.0,60298.0,1.91551112]
[1723393933770,0.00083,60299.0,60298.0,1.92251112]
[1723393933983,0.00083,60299.0,60298.0,1.91551112]
[1723393934391,0.00083,60299.0,60298.0,2.10059386]
[1723393934603,0.00083,60299.0,60298.0,2.08059386]
[1723393934813,0.00093,60309.0,60308.0,0.11607]
[1723393935024,0.00093,60309.0,60308.0,1.04303772]
[1723393935233,0.00093,60309.0,60308.0,1.60731972]
[1723393935456,0.00093,60309.0,60308.0,1.37517872]
[1723393936509,0.00093,60309.0,60308.0,1.25840075]
[1723393936702,0.00093,60309.0,60308.0,1.39606472]
[1723393937333,0.00093,60309.0,60308.0,1.40706472]
[1723393940276,0.00093,60309.0,60308.0,1.40706468]
[1723393940727,0.00093,60309.0,60308.0,1.26940075]
[1723393940984,0.00093,60309.0,60308.0,1.40706327]
[1723393941673,0.00673209,60309.0,60308.0,1.40706327]
[1723393941913,0.00673209,60309.0,60308.0,1.26886327]
[1723393943840,0.00673209,60309.0,60308.0,1.26886757]
[1723393944349,0.00673209,60309.0,60308.0,1.26886997]
[1723393945031,0.00673209,60309.0,60308.0,0.70458797]
[1723393945280,0.08453209,60309.0,60308.0,0.70458797]
[1723393945513,0.08453209,60309.0,60308.0,0.93672897]
[1723393945738,0.08816016,60309.0,60308.0,0.93672897]
[1723393945963,0.08453209,60309.0,60308.0,0.93672897]
[1723393946188,0.08816016,60309.0,60308.0,0.93672897]
[1723393946415,0.08453209,60309.0,60308.0,0.93672897]
[1723393946872,0.08615788,60309.0,60308.0,0.93672897]
[1723393947105,0.08253209,60309.0,60308.0,0.93672897]
[1723393947340,0.00673209,60309.0,60308.0,0.93672897]
[1723393947585,0.01035628,60309.0,60308.0,0.93672897]
[1723393948052,0.01035628,60309.0,60308.0,1.16886997]
[1723393948298,0.01035628,60309.0,60308.0,1.31386997]
[1723393948299,0.00673209,60309.0,60308.0,1.31386997]
[1723393948536,0.00673209,60309.0,60308.0,1.38270294]
[1723393949015,0.00673209,60309.0,60308.0,1.37170294]
[1723393949225,0.00673209,60309.0,60308.0,1.38170294]
[1723393949456,0.00673209,60309.0,60308.0,1.48170294]
[1723393949668,0.00673209,60309.0,60308.0,1.47170294]
[1723393950072,0.00673209,60309.0,60308.0,1.48270294]
[1723393950517,0.0001,60316.0,60315.0,0.580285]
[1723393950730,0.0001,60316.0,60315.0,1.65038755]
[1723393950944,0.00590209,60316.0,60315.0,1.82243837]
[1723393951156,0.00790209,60316.0,60315.0,1.0735785]
[1723393951386,0.00590209,60316.0,60315.0,1.0735785]
[1723393951600,0.00590209,60316.0,60315.0,1.00774553]
[1723393952277,0.00590209,60316.0,60315.0,1.01774553]
[1723393952477,0.00590209,60316.0,60315.0,1.0127647]
[1723393952704,0.00590209,60316.0,60315.0,1.0207647]
[1723393953771,0.00790209,60316.0,60315.0,0.6886507]
[1723393953975,0.08890209,60316.0,60315.0,0.15366478]
[1723393954203,0.09253864,60316.0,60315.0,0.15367511]
[1723393954408,0.09253864,60316.0,60315.0,0.26973211]
[1723393954614,0.09053864,60316.0,60315.0,1.12988903]
[1723393954820,0.00953864,60316.0,60315.0,1.12188903]
[1723393955067,0.00953864,60316.0,60315.0,1.18318903]
[1723393955445,0.00590209,60316.0,60315.0,1.18418903]
[1723393955667,0.00590209,60316.0,60315.0,1.20417439]
[1723393955892,0.00590209,60316.0,60315.0,1.20517439]
[1723393956062,0.00590209,60316.0,60315.0,1.27400001]
[1723393956418,0.00590209,60316.0,60315.0,1.27200001]
[1723393956628,0.00590209,60316.0,60315.0,1.27900001]
[1723393957486,0.0001,60316.0,60315.0,2.06157988]
[1723393957798,0.0001,60316.0,60315.0,2.2345376]
[1723393958010,0.0001,60316.0,60315.0,2.23529301]
[1723393958243,0.0001,60316.0,60315.0,2.24329301]
[1723393958455,0.0001,60316.0,60315.0,2.23529301]
[1723393958667,0.0001,60316.0,60315.0,2.22729301]
[1723393958894,0.0001,60316.0,60315.0,2.24329301]
[1723393959107,0.0001,60316.0,60315.0,2.23529301]
[1723393959536,0.0001,60316.0,60315.0,2.24129301]
[1723393959752,0.0001,60316.0,60315.0,2.25529301]
[1723393961517,0.0001,60316.0,60315.0,1.77285064]
[1723393961745,0.00590209,60316.0,60315.0,1.82355181]
[1723393961961,0.00673209,60316.0,60315.0,1.82355181]
[1723393962194,0.00673209,60316.0,60315.0,1.82357498]
[1723393962409,0.00673209,60316.0,60315.0,1.65072644]
[1723393963313,0.00673209,60316.0,60315.0,1.65073633]
[1723393963959,0.00673209,60316.0,60315.0,0.74645718]
[1723393964170,0.00673209,60316.0,60315.0,0.66363343]
[1723393964382,0.09137388,60316.0,60315.0,0.66363343]
[1723393964580,0.09137388,60316.0,60315.0,0.90774743]
[1723393964820,0.09337388,60316.0,60315.0,0.89574743]
[1723393965336,0.09337388,60316.0,60315.0,1.11586143]
[1723393965337,0.01037388,60316.0,60315.0,1.11586143]
[1723393965596,0.01237388,60316.0,60315.0,1.14686143]
[1723393965821,0.00873209,60316.0,60315.0,1.14487568]
[1723393966048,0.00873209,60316.0,60315.0,1.13687568]
[1723393966271,0.00673209,60316.0,60315.0,1.13987568]
[1723393966493,0.00673209,60316.0,60315.0,1.38870316]
[1723393968073,0.00093,60316.0,60315.0,1.45520316]
[1723393968331,0.00673209,60316.0,60315.0,1.68731716]
[1723393968589,0.00093,60316.0,60315.0,2.11913116]
[1723393968830,0.00580209,60332.0,60321.0,0.01]
[1723393969099,0.00580209,60332.0,60328.0,1.11953892]
[1723393969311,0.00590209,60329.0,60328.0,1.92740953]
[1723393969537,0.00590209,60329.0,60328.0,1.49852508]
[1723393969770,0.00590209,60329.0,60328.0,1.44902816]
[1723393970022,0.0001,60329.0,60328.0,1.44902816]
[1723393970238,0.00590209,60329.0,60328.0,1.4489647]
[1723393970537,0.0001,60329.0,60328.0,1.6810287]
[1723393970753,0.0001,60329.0,60328.0,1.69090986]
[1723393970975,0.0001,60329.0,60328.0,1.70490986]
[1723393972357,0.0001,60329.0,60328.0,1.7683837]
[1723393972575,0.0001,60329.0,60328.0,1.7543837]
[1723393972806,0.0001,60329.0,60328.0,1.7403837]
[1723393973071,0.0001,60329.0,60328.0,1.69090986]
[1723393973310,0.0001,60329.0,60328.0,1.70490986]
[1723393973783,0.0001,60329.0,60328.0,1.77917149]
[1723393974019,0.0001,60329.0,60328.0,1.96517902]
[1723393974265,0.0001,60329.0,60328.0,1.96517939]
[1723393974527,0.0001,60329.0,60328.0,1.77917149]
[1723393974763,0.0001,60329.0,60328.0,1.76517149]
[1723393975020,0.0001,60329.0,60328.0,1.75438409]
[1723393975249,0.0001,60329.0,60328.0,1.75437538]
[1723393975462,0.00093,60329.0,60328.0,1.75436558]
[1723393975952,0.00673209,60329.0,60328.0,1.68190115]
[1723393976208,0.00673209,60329.0,60328.0,1.61309256]
[1723393976437,0.00673209,60329.0,60328.0,1.62709256]
[1723393976880,0.00673209,60329.0,60328.0,1.61309256]
[1723393977102,0.00673209,60329.0,60328.0,1.62209256]
[1723393977318,0.00673209,60329.0,60328.0,1.65009256]
[1723393977776,0.00093,60329.0,60328.0,1.70490009]
[1723393978000,0.00093,60329.0,60328.0,1.71890009]
[1723393978267,0.00093,60329.0,60328.0,1.69090009]
[1723393978756,0.00093,60329.0,60328.0,1.70490009]
[1723393979004,0.00093,60329.0,60328.0,1.6909049]
[1723393979975,0.00673209,60329.0,60328.0,1.7049049]
[1723393980449,0.00673209,60329.0,60328.0,1.6909049]
[1723393980675,0.00673209,60329.0,60328.0,1.24653396]
[1723393980896,0.00673209,60329.0,60328.0,1.27453396]
[1723393981136,0.00673209,60329.0,60328.0,1.26053396]
[1723393981600,0.00673209,60329.0,60328.0,1.3293411]
[1723393981852,0.00093,60329.0,60328.0,1.3153411]
[1723393982138,0.00093,60329.0,60328.0,1.4788411]
[1723393982421,0.00093,60329.0,60328.0,1.47883772]
[1723393982637,0.00093,60329.0,60328.0,1.52830215]
[1723393983161,0.00093,60329.0,60328.0,1.51830215]
[1723393983411,0.00093,60329.0,60328.0,1.75036511]
[1723393983675,0.00093,60329.0,60328.0,1.75136511]
[1723393983944,0.00093,60329.0,60328.0,1.76236511]
[1723393984175,0.00093,60329.0,60328.0,1.53030111]
[1723393984623,0.00093,60329.0,60328.0,1.71290068]
[1723393985364,0.00093,60329.0,60328.0,1.76236511]
[1723393986093,0.00093,60329.0,60328.0,1.50648408]
[1723393986332,0.00093,60329.0,60328.0,1.80510291]
[1723393986567,0.00093,60329.0,60328.0,1.87390709]
[1723393986817,0.00093,60329.0,60328.0,1.70189662]
[1723393987061,0.00093,60329.0,60328.0,1.87390707]
[1723393987283,0.00093,60329.0,60328.0,1.92333482]
[1723393987508,0.00093,60329.0,60328.0,1.93433482]
[1723393987719,0.00093,60329.0,60328.0,1.91233482]
[1723393987918,0.00093,60329.0,60328.0,1.86290707]
[1723393988044,0.00093,60329.0,60328.0,1.87690707]
[1723393988284,0.00093,60329.0,60328.0,2.09060707]
[1723393989512,0.00093,60329.0,60328.0,2.58788707]
[1723393989732,0.00093,60329.0,60328.0,2.57388707]
[1723393989980,0.00093,60329.0,60328.0,2.58788707]
[1723393990184,0.00673209,60329.0,60328.0,1.80361262]
[1723393990593,0.00673209,60329.0,60328.0,1.74880844]
[1723393991012,0.09153209,60329.0,60328.0,1.28468044]
[1723393991214,0.27266209,60329.0,60328.0,0.66288836]
[1723393991448,0.27633057,60329.0,60328.0,0.66288836]
[1723393991652,0.50839057,60329.0,60328.0,0.52528]
[1723393991864,0.50839057,60329.0,60328.0,0.51128]
[1723393992079,0.16030057,60329.0,60328.0,0.52528]
[1723393992325,0.27633057,60329.0,60328.0,0.52528]
[1723393992510,0.16030057,60329.0,60328.0,0.52528]
[1723393992981,0.16030057,60329.0,60328.0,0.80512692]
[1723393993213,0.16030057,60329.0,60328.0,1.02319092]
[1723393993491,0.16030057,60329.0,60328.0,1.03719092]
[1723393993681,0.16030057,60329.0,60328.0,1.04619092]
[1723393993974,0.16030057,60329.0,60328.0,1.03219092]
[1723393994227,0.16030057,60329.0,60328.0,1.17683774]
[1723393994407,0.16230057,60329.0,60328.0,1.40190174]
[1723393994633,0.09720057,60329.0,60328.0,1.40190174]
[1723393994798,0.09920057,60329.0,60328.0,1.40190174]
[1723393995040,0.09553209,60329.0,60328.0,1.40190174]
[1723393995621,0.09353209,60329.0,60328.0,1.40190174]
[1723393996284,0.09153209,60329.0,60328.0,1.40190174]
[1723393996497,0.00873209,60329.0,60328.0,1.40590174]
[1723393996913,0.0123846,60329.0,60328.0,1.41617004]
[1723393997124,0.0123846,60329.0,60328.0,1.42017004]
[1723393997320,0.00873209,60329.0,60328.0,1.42017004]
[1723393997707,0.01238749,60329.0,60328.0,1.42017004]
[1723393997977,0.00873209,60329.0,60328.0,1.42015788]
[1723393998414,0.00673209,60329.0,60328.0,1.51458722]
[1723393998637,0.00673209,60329.0,60328.0,1.75222021]
[1723393998879,0.00673209,60329.0,60328.0,1.83452021]
[1723393999087,0.00673209,60329.0,60328.0,1.90333236]
[1723393999508,0.00673209,60329.0,60328.0,1.83452021]
[1723393999724,0.00673209,60329.0,60328.0,1.90332817]
[1723394001420,0.00673209,60329.0,60328.0,1.83451452]
[1723394001889,0.00673209,60329.0,60328.0,1.83451633]
[1723394002520,0.00673209,60329.0,60328.0,1.95282608]
[1723394004190,0.00673209,60329.0,60328.0,1.83451633]
[1723394004402,0.00673209,60329.0,60328.0,1.82102956]
[1723394004617,0.00673209,60329.0,60328.0,1.52015233]
[1723394005723,0.00673209,60329.0,60328.0,1.52015531]
[1723394007042,0.00873209,60329.0,60328.0,1.52015531]
[1723394007472,0.00673209,60329.0,60328.0,1.89603154]
[1723394007689,0.00673209,60329.0,60328.0,1.94552951]
[1723394008319,0.00673209,60329.0,60328.0,1.89603154]
[1723394008522,0.00673209,60329.0,60328.0,1.94551485]
[1723394008727,0.00673209,60329.0,60328.0,1.89603154]
[1723394009149,0.00673209,60329.0,60328.0,1.94551397]
[1723394009377,0.00673209,60329.0,60328.0,1.82720794]
[1723394009591,0.00673209,60329.0,60328.0,1.89601827]
[1723394010024,0.00673209,60329.0,60328.0,1.75839757]
[1723394010236,0.00673209,60329.0,60328.0,1.89601828]
[1723394010462,0.00673209,60329.0,60328.0,1.97026687]
[1723394011088,0.00873209,60329.0,60328.0,1.66320287]
[1723394011301,0.00873209,60329.0,60328.0,1.52014393]
[1723394011515,0.15623209,60329.0,60328.0,1.56964463]
[1723394011729,0.15623209,60329.0,60328.0,1.52014393]
[1723394012146,0.15423209,60329.0,60328.0,1.52014393]
[1723394012794,0.09073209,60329.0,60328.0,1.52014393]
[1723394013000,0.08873209,60329.0,60328.0,1.52014393]
[1723394013259,0.08873209,60329.0,60328.0,1.38252322]
[1723394013474,0.09073209,60329.0,60328.0,1.52015621]
[1723394016491,0.09073209,60329.0,60328.0,1.51615621]
[1723394016944,0.09073209,60329.0,60328.0,1.51815621]
[1723394017780,0.00873209,60329.0,60328.0,1.52315621]
[1723394018205,0.00873209,60329.0,60328.0,1.51815621]
[1723394018426,0.00873209,60329.0,60328.0,1.52415621]
[1723394019115,0.00873209,60329.0,60328.0,1.57372153]
[1723394019555,0.00873209,60329.0,60328.0,1.52415621]
[1723394019768,0.00873209,60329.0,60328.0,1.57372153]
[1723394020185,0.00873209,60329.0,60328.0,1.80578553]
[1723394020399,0.00673209,60329.0,60328.0,1.57372153]
[1723394020611,0.00873209,60329.0,60328.0,1.5929704]
[1723394020795,0.00873209,60329.0,60328.0,1.80578086]
[1723394021056,0.00873209,60329.0,60328.0,1.66814787]
[1723394021265,0.00873209,60329.0,60328.0,1.80577806]
[1723394021471,0.00873209,60329.0,60328.0,1.87459269]
[1723394022202,0.00873209,60329.0,60328.0,1.82503204]
[1723394022404,0.00873209,60329.0,60328.0,1.66731603]
[1723394024305,0.00873209,60329.0,60328.0,1.59296804]
[1723394024736,0.00873209,60329.0,60328.0,1.68740185]
[1723394024932,0.00873209,60329.0,60328.0,1.59296751]
[1723394025066,0.00873209,60329.0,60328.0,1.82503151]
[1723394025496,0.00873209,60329.0,60328.0,1.8993795]
[1723394026097,0.00873209,60329.0,60328.0,1.82503151]
[1723394026905,0.15633209,60329.0,60328.0,0.64690966]
[1723394027327,0.76648209,60329.0,60328.0,0.64690966]
[1723394027528,0.74014256,60329.0,60328.0,0.50928]
[1723394027724,0.75014256,60329.0,60328.0,0.50928]
[1723394028041,0.75014256,60329.0,60328.0,0.49728]
[1723394028508,0.77014256,60329.0,60328.0,0.49728]
[1723394028676,1.00220256,60329.0,60328.0,0.49728]
[1723394029256,1.00220256,60329.0,60328.0,0.49928]
[1723394029694,1.00220256,60329.0,60328.0,0.49728]
[1723394029907,1.00220256,60329.0,60328.0,0.49828]
[1723394030115,1.00220256,60329.0,60328.0,0.49928]
[1723394030349,1.00220256,60329.0,60328.0,0.49828]
[1723394030604,0.77014256,60329.0,60328.0,0.49828]
[1723394030851,1.00220256,60329.0,60328.0,0.49928]
[1723394031065,1.00220256,60329.0,60328.0,0.49828]
[1723394031287,1.00220256,60329.0,60328.0,0.49928]
[1723394034100,1.16601748,60329.0,60328.0,0.49928]
[1723394034310,1.31567744,60329.0,60328.0,0.002]
[1723394034521,1.49807748,60329.0,60328.0,0.002]
[1723394034702,1.57256743,60329.0,60328.0,0.002]
[1723394035321,1.54767431,60329.0,60328.0,0.002]
[1723394035747,1.49807748,60329.0,60328.0,0.002]
[1723394036599,1.16437509,60323.0,60322.0,0.000913]
[1723394036807,1.52789001,60323.0,60322.0,0.000913]
[1723394037007,1.63152545,60323.0,60322.0,0.000913]
[1723394037654,1.69632545,60323.0,60322.0,0.000913]
[1723394037871,2.09255815,60323.0,60322.0,0.000913]
[1723394038075,1.13216709,60310.0,60309.0,0.000913]
[1723394038502,1.13580157,60310.0,60309.0,0.000913]
[1723394038935,1.11580157,60310.0,60309.0,0.000913]
[1723394039153,1.17970157,60310.0,60309.0,0.000913]
[1723394039645,1.17970157,60310.0,60309.0,0.001913]
[1723394039646,0.44183557,60310.0,60309.0,0.001913]
[1723394039857,0.38063557,60310.0,60309.0,0.001913]
[1723394040476,0.37063557,60310.0,60309.0,0.001913]
[1723394040693,0.60176857,60310.0,60309.0,0.000913]
[1723394040900,0.13950257,60310.0,60309.0,0.001913]
[1723394041160,0.00943657,60310.0,60309.0,0.39686492]
[1723394041374,0.00943657,60310.0,60309.0,1.38428633]
[1723394041580,0.01080209,60310.0,60309.0,1.38528633]
[1723394042020,0.01080209,60310.0,60309.0,1.39532778]
[1723394042261,0.016,60310.0,60309.0,1.62845488]
[1723394042474,0.016,60310.0,60309.0,1.94642216]
[1723394042690,0.005,60310.0,60309.0,1.48978537]
[1723394042908,0.006,60310.0,60309.0,1.63843552]
[1723394043119,0.001,60310.0,60309.0,1.68687727]
[1723394043344,0.002,60310.0,60309.0,1.68787577]
[1723394043580,0.001,60310.0,60309.0,1.95437674]
[1723394043801,0.00580209,60319.0,60318.0,0.95876]
[1723394044018,0.00580209,60319.0,60318.0,1.38322358]
[1723394044908,0.00147875,60319.0,60318.0,1.38322358]
[1723394046143,0.00147875,60319.0,60318.0,1.39307943]
[1723394046355,0.00247875,60319.0,60318.0,1.26543077]
[1723394046560,0.00247875,60319.0,60318.0,1.40306676]
[1723394046751,0.00347875,60319.0,60318.0,1.41306676]
[1723394050704,0.00347875,60319.0,60318.0,1.413069]
[1723394051445,0.002,60319.0,60318.0,1.71398827]
[1723394051873,0.002,60319.0,60318.0,1.71398732]
[1723394052296,0.002,60319.0,60318.0,1.98486359]
[1723394052532,0.002,60319.0,60318.0,1.96012901]
[1723394052758,0.00083,60322.0,60321.0,1.188009]
[1723394052960,0.00230875,60322.0,60321.0,1.58127747]
[1723394053167,0.00083,60322.0,60321.0,1.58127747]
[1723394053582,0.00230875,60322.0,60321.0,1.34918647]
[1723394053815,0.00230875,60322.0,60321.0,1.38037115]
[1723394054445,0.00330875,60322.0,60321.0,1.39437115]
[1723394054653,0.00330875,60322.0,60321.0,1.16228015]
[1723394054654,0.00530875,60322.0,60321.0,1.16228015]
[1723394055079,0.00530875,60322.0,60321.0,1.16228294]
[1723394055499,0.00530875,60322.0,60321.0,1.02464192]
[1723394055710,0.00430875,60322.0,60321.0,1.16128329]
[1723394056135,0.00430875,60322.0,60321.0,1.16228329]
[1723394056366,0.00430875,60322.0,60321.0,1.14828329]
[1723394056564,0.00430875,60322.0,60321.0,1.16128329]
[1723394056777,0.00430875,60322.0,60321.0,1.17528348]
[1723394057188,0.00230875,60322.0,60321.0,1.17528348]
[1723394057765,0.00230875,60322.0,60321.0,1.40737448]
[1723394058592,0.00083,60322.0,60321.0,1.40737448]
[1723394059770,0.00230875,60322.0,60321.0,1.40737448]
[1723394059969,0.00083,60322.0,60321.0,1.40737448]
[1723394060442,0.00230875,60322.0,60321.0,1.40737448]
[1723394060924,0.00083,60322.0,60321.0,1.40737448]